bitfinex/quotes_BTCUSD_20250529
["timestamp","ask_amount","ask_price","bid_price","bid_amount"]
[1748547781027,0.5142955,105710.0,105690.0,0.33697139]
[1748547781250,0.52375516,105710.0,105700.0,0.00946073]
[1748547781682,0.52375516,105710.0,105690.0,0.33697193]
[1748547781955,0.2173755,105710.0,105700.0,0.20913594]
[1748547782167,0.22683489,105710.0,105700.0,0.19967539]
[1748547782392,0.52375489,105710.0,105700.0,0.20913594]
[1748547782824,0.52356302,105710.0,105700.0,0.19977539]
[1748547783044,0.20811168,105720.0,105710.0,0.19865651]
[1748547783274,0.20811168,105720.0,105700.0,0.41466903]
[1748547783275,0.23648806,105720.0,105700.0,0.4116091]
[1748547783518,0.22702903,105720.0,105700.0,0.42116903]
[1748547783726,0.22702903,105720.0,105700.0,0.42126903]
[1748547783950,0.002,105710.0,105700.0,0.43592356]
[1748547784635,0.19119685,105710.0,105700.0,0.42646363]
[1748547785126,0.19119685,105710.0,105700.0,0.76746363]
[1748547785327,0.18919685,105710.0,105700.0,0.76746363]
[1748547786262,0.19019685,105710.0,105700.0,0.76746363]
[1748547786696,0.18411168,105720.0,105710.0,0.19865669]
[1748547786917,0.17465345,105720.0,105710.0,0.20811608]
[1748547787134,0.17465345,105720.0,105710.0,0.19865669]
[1748547787135,0.18411186,105720.0,105710.0,0.19865669]
[1748547787349,0.20302912,105720.0,105700.0,0.77692329]
[1748547787562,0.18919685,105710.0,105700.0,0.7674638]
[1748547787785,0.18919685,105710.0,105700.0,0.76746424]
[1748547788016,0.19865606,105710.0,105700.0,0.54022848]
[1748547788267,0.20811554,105710.0,105700.0,0.53922848]
[1748547788544,0.24101545,105710.0,105700.0,0.53922848]
[1748547788752,0.25047484,105710.0,105700.0,0.53922848]
[1748547789187,0.24101536,105710.0,105700.0,0.53922848]
[1748547789405,0.26093441,105710.0,105700.0,0.43363368]
[1748547789640,0.27039425,105710.0,105700.0,0.34051368]
[1748547789859,0.25147574,105710.0,105700.0,0.43351368]
[1748547790373,0.24201635,105710.0,105700.0,0.34051368]
[1748547790610,0.53889635,105710.0,105700.0,0.34151368]
[1748547792336,0.23255669,105710.0,105700.0,0.00151368]
[1748547792763,0.52939669,105710.0,105700.0,0.00151368]
[1748547793416,0.51993685,105710.0,105700.0,0.00151368]
[1748547803469,0.51993685,105710.0,105700.0,0.00101368]
[1748547810130,0.51985685,105710.0,105700.0,0.00101368]
[1748547816598,0.51981685,105710.0,105700.0,0.00101368]
[1748547835130,0.51981685,105710.0,105700.0,0.00111368]
[1748547837363,0.51965685,105710.0,105700.0,0.00111368]
[1748547840282,0.22309685,105710.0,105700.0,0.00111368]
[1748547840908,0.51965685,105710.0,105700.0,0.00111368]
[1748547841952,0.49617606,105710.0,105700.0,0.00111368]
[1748547842157,0.49617606,105710.0,105700.0,0.00404346]
[1748547842158,0.52455477,105710.0,105700.0,0.00404346]
[1748547842589,0.51509556,105710.0,105700.0,0.00404346]
[1748547843154,0.20911518,105710.0,105700.0,0.01584346]
[1748547843355,0.22803432,105710.0,105700.0,0.01584346]
[1748547844075,0.21857583,105710.0,105700.0,0.00404346]
[1748547845063,0.24021635,105710.0,105700.0,0.00111368]
[1748547849717,0.24021635,105710.0,105700.0,0.00404152]
[1748547849918,0.24021635,105710.0,105700.0,0.00111368]
[1748547854663,1.0743756,105750.0,105700.0,0.1541896]
[1748547854664,0.5405041,105750.0,105700.0,0.1541896]
[1748547854956,0.18914318,105740.0,105730.0,0.19861912]
[1748547855199,0.21756065,105750.0,105740.0,0.34]
[1748547855200,0.00945546,105750.0,105740.0,0.34]
[1748547855416,0.00945546,105750.0,105740.0,0.43105395]
[1748547855637,0.2174921,105750.0,105740.0,0.65148896]
[1748547855937,0.23879675,105760.0,105750.0,0.18912529]
[1748547856196,0.21747208,105760.0,105750.0,0.21749326]
[1748547856411,0.20801698,105760.0,105750.0,0.21749326]
[1748547856642,0.21747208,105760.0,105750.0,0.34125771]
[1748547856884,0.21747208,105760.0,105750.0,0.3085473]
[1748547857314,0.21752132,105760.0,105750.0,0.33180181]
[1748547857526,0.2269766,105760.0,105750.0,0.30854748]
[1748547857750,0.2269766,105760.0,105750.0,0.29909149]
[1748547858008,0.21752186,105760.0,105750.0,0.09105395]
[1748547858207,0.21752186,105760.0,105740.0,0.19860016]
[1748547858208,0.21749326,105750.0,105740.0,0.19860016]
[1748547858407,0.21749326,105750.0,105740.0,0.28965411]
[1748547858533,0.21749326,105750.0,105740.0,0.299111]
[1748547858741,0.20803709,105750.0,105740.0,0.3085678]
[1748547859302,0.21749317,105750.0,105740.0,0.29165419]
[1748547859504,0.21749317,105750.0,105740.0,0.30111099]
[1748547860420,0.21749326,105750.0,105740.0,0.38537419]
[1748547860619,0.21749326,105750.0,105740.0,0.4042877]
[1748547860817,0.21749326,105750.0,105740.0,0.39483108]
[1748547861067,0.20803709,105750.0,105740.0,0.41374423]
[1748547861284,0.20803709,105750.0,105740.0,0.41374459]
[1748547861488,0.20803709,105750.0,105740.0,0.42320112]
[1748547863457,0.20803709,105750.0,105740.0,0.41374459]
[1748547863672,0.20803709,105750.0,105740.0,0.42320121]
[1748547864300,0.01554924,105760.0,105750.0,0.19858137]
[1748547864511,0.22697633,105760.0,105750.0,0.29909113]
[1748547864715,0.51372105,105760.0,105750.0,0.30854685]
[1748547864941,0.52317624,105760.0,105750.0,0.28963532]
[1748547865147,0.53263161,105760.0,105750.0,0.28963532]
[1748547865350,0.53263161,105760.0,105750.0,0.29909131]
[1748547865528,0.53263161,105760.0,105750.0,0.30009131]
[1748547865752,0.52317696,105760.0,105750.0,0.2906355]
[1748547865893,0.22697696,105760.0,105750.0,0.30009167]
[1748547866100,0.22697696,105760.0,105750.0,0.2906355]
[1748547866311,0.22697696,105760.0,105750.0,0.30009167]
[1748547866711,0.21752222,105760.0,105750.0,0.09205395]
[1748547867235,0.24782222,105760.0,105750.0,0.11105262]
[1748547867467,0.23836721,105760.0,105750.0,0.11105262]
[1748547868485,0.23836721,105760.0,105750.0,0.12105262]
[1748547869334,0.21945665,105760.0,105750.0,0.02999867]
[1748547869752,0.51557665,105760.0,105750.0,0.02999867]
[1748547872907,0.51553665,105760.0,105750.0,0.02999867]
[1748547873532,0.52499184,105760.0,105750.0,0.03011633]
[1748547877354,0.52495184,105760.0,105750.0,0.03011633]
[1748547878621,0.22891184,105760.0,105750.0,0.03011633]
[1748547878826,0.52495184,105760.0,105750.0,0.03011633]
[1748547881321,0.21945665,105760.0,105750.0,0.21924162]
[1748547881529,0.50406676,105760.0,105750.0,0.12117028]
[1748547881741,0.1986113,105760.0,105750.0,0.32154968]
[1748547881960,0.51352105,105760.0,105750.0,0.66920791]
[1748547882173,0.51352105,105760.0,105750.0,0.67211563]
[1748547882375,0.21752105,105760.0,105750.0,0.67211563]
[1748547882586,0.51352105,105760.0,105750.0,0.67211572]
[1748547882797,0.51352105,105760.0,105750.0,0.6815718]
[1748547883218,0.51352105,105760.0,105750.0,0.67603089]
[1748547883447,0.22697597,105760.0,105750.0,0.67606274]
[1748547883662,0.52297597,105760.0,105750.0,0.68551891]
[1748547883872,0.51352087,105760.0,105750.0,0.67606274]
[1748547884297,0.52297597,105760.0,105750.0,0.67314052]
[1748547884512,0.50406613,105760.0,105750.0,0.69205277]
[1748547884926,0.51352114,105760.0,105750.0,0.67314052]
[1748547885138,0.52297624,105760.0,105750.0,0.67314052]
[1748547885349,0.51352114,105760.0,105750.0,0.67314052]
[1748547885565,0.51352114,105760.0,105750.0,0.68259669]
[1748547885770,0.52297633,105760.0,105750.0,0.67314052]
[1748547885986,0.51352114,105760.0,105750.0,0.67314052]
[1748547886415,0.52297633,105760.0,105750.0,0.67314052]
[1748547886652,0.52297633,105760.0,105750.0,0.47455897]
[1748547887930,0.53957633,105760.0,105750.0,0.47455897]
[1748547888145,0.53716721,105760.0,105750.0,0.47455897]
[1748547888362,0.53716721,105760.0,105750.0,0.38643299]
[1748547888583,0.52771202,105760.0,105750.0,0.38643299]
[1748547889096,0.52771202,105760.0,105750.0,0.04253232]
[1748547891663,0.52771202,105760.0,105750.0,0.03960435]
[1748547891886,0.52771202,105760.0,105750.0,0.04643425]
[1748547892645,0.51825665,105760.0,105750.0,0.04643425]
[1748547892883,0.51825665,105760.0,105750.0,0.04253358]
[1748547895203,0.22225665,105760.0,105750.0,0.04253358]
[1748547895380,0.51809665,105760.0,105750.0,0.04253358]
[1748547896007,0.51809665,105760.0,105750.0,0.04253373]
[1748547898610,0.51809665,105760.0,105750.0,0.13538569]
[1748547898611,0.2411664,105760.0,105750.0,0.13538569]
[1748547898825,0.55591687,105760.0,105750.0,0.13538569]
[1748547899036,0.55591687,105760.0,105750.0,0.13748835]
[1748547900394,0.54646213,105760.0,105750.0,0.13748838]
[1748547901130,0.53700712,105760.0,105750.0,0.13748838]
[1748547901597,0.24116712,105760.0,105750.0,0.13358771]
[1748547902047,0.23171202,105760.0,105750.0,0.13358771]
[1748547902266,0.52046658,105760.0,105750.0,0.13748838]
[1748547902524,4.924e-05,105760.0,105750.0,0.74186655]
[1748547902760,4.924e-05,105760.0,105750.0,2.39303434]
[1748547903000,0.20287312,105800.0,105770.0,0.21743448]
[1748547903001,0.21380614,105790.0,105770.0,0.21743448]
[1748547903242,0.2079582,105790.0,105780.0,0.29528192]
[1748547903483,0.5037182,105790.0,105780.0,0.29641508]
[1748547903726,0.49426605,105790.0,105780.0,0.10081452]
[1748547903955,0.20795811,105790.0,105780.0,0.62875295]
[1748547904197,0.19850605,105790.0,105780.0,0.64293924]
[1748547904430,0.50371811,105790.0,105780.0,0.64293933]
[1748547904661,0.50371811,105790.0,105780.0,0.43788314]
[1748547904662,0.18905417,105790.0,105780.0,0.43788314]
[1748547904898,0.20795838,105790.0,105780.0,0.42696831]
[1748547905357,0.21741089,105790.0,105780.0,0.42696831]
[1748547905846,0.21741089,105790.0,105780.0,0.42896831]
[1748547905847,0.20795838,105790.0,105780.0,0.42896831]
[1748547906321,0.19850614,105790.0,105780.0,0.42606165]
[1748547906537,0.18915239,105800.0,105780.0,0.66193984]
[1748547906770,0.21750651,105800.0,105790.0,0.00179553]
[1748547907015,0.21750651,105800.0,105790.0,0.09577201]
[1748547907253,0.21750651,105800.0,105790.0,0.18649648]
[1748547907476,0.2269583,105800.0,105790.0,0.18357395]
[1748547907926,0.18915239,105800.0,105790.0,0.37262773]
[1748547908159,0.18915239,105800.0,105790.0,0.73954024]
[1748547908160,0.19853619,105800.0,105790.0,0.73954024]
[1748547908514,0.20798744,105800.0,105790.0,0.52649302]
[1748547908609,0.20798744,105800.0,105790.0,0.72499939]
[1748547908845,0.21743887,105800.0,105790.0,0.7344519]
[1748547909073,0.20798744,105800.0,105790.0,0.72499939]
[1748547909537,0.21743887,105800.0,105790.0,0.72499948]
[1748547909794,0.21743878,105800.0,105790.0,0.73445207]
[1748547910237,0.22689021,105800.0,105790.0,0.5359457]
[1748547910449,0.22689021,105800.0,105790.0,0.52649302]
[1748547910661,0.21743887,105800.0,105790.0,0.74050789]
[1748547910885,0.21743887,105800.0,105790.0,0.7310553]
[1748547911144,0.20798744,105800.0,105790.0,0.53254884]
[1748547911382,0.23828815,105800.0,105790.0,0.00605582]
[1748547911841,0.3293421,105800.0,105790.0,0.00605582]
[1748547912062,0.24029784,105770.0,105760.0,0.00390666]
[1748547912285,0.53589784,105770.0,105760.0,0.09496061]
[1748547912508,0.53589784,105770.0,105760.0,0.09105395]
[1748547912970,0.51999784,105770.0,105760.0,0.09105395]
[1748547913180,0.51999784,105770.0,105760.0,0.09285121]
[1748547913400,0.22439784,105770.0,105760.0,0.09105395]
[1748547913628,0.21494382,105770.0,105760.0,0.09105395]
[1748547913834,0.21494382,105770.0,105760.0,0.09285121]
[1748547914041,0.20548953,105770.0,105760.0,0.09285121]
[1748547914463,0.22178953,105770.0,105760.0,0.09105395]
[1748547914719,0.22178953,105770.0,105760.0,0.09405395]
[1748547915013,0.20548953,105770.0,105760.0,0.09585121]
[1748547915254,0.2269058,105770.0,105760.0,0.09585121]
[1748547915485,0.2269058,105770.0,105760.0,0.09885121]
[1748547915732,0.21745204,105770.0,105760.0,0.09705395]
[1748547915960,0.20799802,105770.0,105760.0,0.09705395]
[1748547916195,0.22429802,105770.0,105760.0,0.09705395]
[1748547916413,0.23054391,105770.0,105760.0,0.09705395]
[1748547918991,0.23054391,105770.0,105760.0,0.09725352]
[1748547920848,0.2311626,105760.0,105750.0,0.03856625]
[1748547921084,0.2311626,105760.0,105750.0,0.1296202]
[1748547922501,0.2321626,105760.0,105750.0,0.1336202]
[1748547922774,0.2321626,105760.0,105750.0,0.4736202]
[1748547923232,0.2321626,105760.0,105750.0,0.38756625]
[1748547923671,0.2321626,105760.0,105750.0,0.35976553]
[1748547923892,0.23199746,105760.0,105750.0,0.35976553]
[1748547925206,0.23199746,105760.0,105750.0,0.37876987]
[1748547927004,0.22355687,105740.0,105730.0,0.09232]
[1748547927228,0.23644952,105730.0,105720.0,0.56506694]
[1748547927464,0.22699147,105730.0,105720.0,0.65617013]
[1748547927691,0.23644952,105730.0,105720.0,0.66543745]
[1748547927923,0.22699147,105730.0,105720.0,0.67489612]
[1748547928371,0.22680444,105730.0,105720.0,0.67489612]
[1748547928597,0.23726249,105730.0,105720.0,0.67243745]
[1748547928815,0.26050444,105730.0,105720.0,0.68235976]
[1748547929047,0.26996249,105730.0,105720.0,0.67943703]
[1748547929268,0.26996249,105730.0,105720.0,0.67943712]
[1748547929512,0.26996249,105730.0,105720.0,0.68889597]
[1748547929759,0.26996249,105730.0,105720.0,0.67943712]
[1748547929996,0.26050444,105730.0,105720.0,0.68889597]
[1748547930235,0.26050516,105730.0,105720.0,0.45896691]
[1748547930466,0.25104765,105730.0,105720.0,0.45896691]
[1748547930720,0.24158969,105730.0,105720.0,0.66706348]
[1748547930966,0.25104765,105730.0,105720.0,0.46842585]
[1748547931190,0.24158987,105730.0,105720.0,0.11896691]
[1748547931415,0.53706987,105730.0,105720.0,0.02791296]
[1748547931672,0.2236159,105710.0,105700.0,0.01691611]
[1748547931901,0.2386159,105710.0,105700.0,0.10120305]
[1748547932124,0.2386159,105710.0,105700.0,0.44120305]
[1748547932570,0.23845696,105710.0,105700.0,0.44120305]
[1748547932817,0.23845696,105710.0,105700.0,0.66834542]
[1748547932818,0.015,105710.0,105700.0,0.66834542]
[1748547933079,0.21755472,105720.0,105710.0,0.53865651]
[1748547933359,0.21755472,105720.0,105710.0,0.62971055]
[1748547933804,0.22701357,105720.0,105710.0,0.62971055]
[1748547934026,0.20809587,105720.0,105710.0,0.62971055]
[1748547934268,0.21755472,105720.0,105710.0,0.63917021]
[1748547934485,0.22255472,105720.0,105710.0,0.63917021]
[1748547934718,0.22836558,105720.0,105710.0,0.62971064]
[1748547934933,0.22836549,105720.0,105710.0,0.62971064]
[1748547935143,0.23782443,105720.0,105710.0,0.62971064]
[1748547935353,0.23782443,105720.0,105710.0,0.44997354]
[1748547935562,0.23782443,105720.0,105710.0,0.44051379]
[1748547936427,0.23782443,105720.0,105710.0,0.64873005]
[1748547936644,0.23782443,105720.0,105710.0,0.62981064]
[1748547936861,0.22817188,105720.0,105710.0,0.62981064]
[1748547937103,0.22817188,105720.0,105710.0,0.67272993]
[1748547937104,0.01085865,105720.0,105710.0,0.67272993]
[1748547937352,0.23018354,105750.0,105740.0,0.53860024]
[1748547937576,0.21749263,105750.0,105740.0,0.64856806]
[1748547937794,0.2269488,105750.0,105740.0,0.63911117]
[1748547938093,0.21749317,105750.0,105740.0,0.62965419]
[1748547938314,0.21749317,105750.0,105740.0,0.63911108]
[1748547938537,0.21749317,105750.0,105740.0,0.62965419]
[1748547938755,0.21749317,105750.0,105740.0,0.63911117]
[1748547938968,0.21749317,105750.0,105740.0,0.62019713]
[1748547939179,0.24839317,105750.0,105740.0,0.4405111]
[1748547939408,0.24839317,105750.0,105740.0,0.44996816]
[1748547940048,0.23739317,105750.0,105740.0,0.64956823]
[1748547940253,0.23739317,105750.0,105740.0,0.63065428]
[1748547940468,0.24139317,105750.0,105740.0,0.64011134]
[1748547940683,0.23739317,105750.0,105740.0,0.63911134]
[1748547940913,0.23939317,105750.0,105740.0,0.43105395]
[1748547941118,0.25459317,105750.0,105740.0,0.63911134]
[1748547941342,0.25459317,105750.0,105740.0,0.64856823]
[1748547941596,0.23939317,105750.0,105740.0,0.65802503]
[1748547941866,0.22349246,105750.0,105740.0,0.65802503]
[1748547942138,0.22349237,105750.0,105740.0,0.66748112]
[1748547942416,0.22349237,105750.0,105740.0,0.6849444]
[1748547942417,0.006,105750.0,105740.0,0.6849444]
[1748547942645,0.24833352,105780.0,105770.0,0.53854391]
[1748547942861,0.2577871,105780.0,105770.0,0.63905215]
[1748547943083,0.25793494,105780.0,105770.0,0.62959786]
[1748547943300,0.2484819,105780.0,105770.0,0.43105395]
[1748547943527,0.53446859,105780.0,105770.0,0.43105395]
[1748547943951,0.53646859,105780.0,105770.0,0.43105395]
[1748547944193,0.53646859,105780.0,105770.0,0.34]
[1748547944668,0.53646859,105780.0,105770.0,0.341]
[1748547944669,0.53846859,105780.0,105770.0,0.341]
[1748547945191,0.53846859,105780.0,105770.0,0.35945996]
[1748547945898,0.24011752,105760.0,105750.0,0.00292252]
[1748547946116,0.24011752,105760.0,105750.0,0.09105395]
[1748547946330,0.22124318,105740.0,105730.0,0.28428245]
[1748547946543,0.02595662,105740.0,105730.0,0.39425151]
[1748547946762,0.02836977,105740.0,105730.0,0.75825023]
[1748547946992,0.01891297,105740.0,105730.0,0.75825023]
[1748547947227,0.01891288,105740.0,105730.0,0.75825023]
[1748547947452,0.02836968,105740.0,105730.0,0.75825023]
[1748547947699,0.02836968,105740.0,105730.0,0.76325023]
[1748547947700,0.02936968,105740.0,105730.0,0.76325023]
[1748547947913,0.03036968,105740.0,105730.0,0.76825023]
[1748547948128,0.03036959,105740.0,105730.0,0.76825023]
[1748547948355,0.002,105740.0,105730.0,0.80259437]
[1748547948596,0.002,105740.0,105730.0,1.44278537]
[1748547948804,0.002,105740.0,105730.0,1.15143399]
[1748547949014,0.00181657,105740.0,105730.0,1.44463643]
[1748547949217,0.00181657,105740.0,105730.0,1.35243643]
[1748547949437,0.00181657,105740.0,105730.0,1.39549543]
[1748547949669,0.00181657,105740.0,105730.0,1.51892943]
[1748547950341,0.00170031,105740.0,105730.0,1.51892943]
[1748547951723,0.00170031,105740.0,105730.0,1.52892943]
[1748547952432,0.00159979,105740.0,105730.0,1.52892943]
[1748547952658,0.00159979,105740.0,105730.0,1.51759443]
[1748547952882,0.00159979,105740.0,105730.0,1.54596443]
[1748547954732,0.00159979,105740.0,105730.0,1.61036385]
[1748547956593,0.00145776,105740.0,105730.0,1.63913985]
[1748547956816,0.00145776,105740.0,105730.0,1.34381985]
[1748547957054,0.00145776,105740.0,105730.0,1.19294485]
[1748547957327,0.00145776,105740.0,105730.0,1.40472543]
[1748547957576,0.00145776,105740.0,105730.0,1.46915101]
[1748547957819,0.0013572,105740.0,105730.0,1.76785301]
[1748547958062,0.0013572,105740.0,105730.0,1.79695301]
[1748547958749,0.0013572,105740.0,105730.0,1.73712316]
[1748547958980,0.0013572,105740.0,105730.0,1.40212316]
[1748547959208,0.0013572,105740.0,105730.0,1.64223416]
[1748547960107,0.0013572,105740.0,105730.0,1.47914916]
[1748547960337,0.0013572,105740.0,105730.0,1.63593916]
[1748547960563,0.0013572,105740.0,105730.0,1.64773916]
[1748547960789,0.0013572,105740.0,105730.0,1.63593916]
[1748547961078,0.00125511,105740.0,105730.0,1.63593916]
[1748547961330,0.0010778,105740.0,105730.0,1.63593916]
[1748547961627,0.0010778,105740.0,105730.0,1.63594224]
[1748547962555,0.00087975,105740.0,105730.0,1.63594224]
[1748547962788,0.00075619,105740.0,105730.0,1.63594224]
[1748547963019,0.00075619,105740.0,105730.0,1.64774224]
[1748547963245,0.00075619,105740.0,105730.0,1.65504224]
[1748547964657,0.00075619,105740.0,105730.0,1.64774224]
[1748547964910,0.00075619,105740.0,105730.0,1.63594224]
[1748547965133,0.00075619,105740.0,105730.0,1.73910224]
[1748547965349,0.04101272,105740.0,105730.0,1.20616458]
[1748547965574,0.04101272,105740.0,105730.0,1.50136458]
[1748547965575,0.03155619,105740.0,105730.0,1.50136458]
[1748547965793,0.03155619,105740.0,105730.0,1.51605068]
[1748547966010,0.01655619,105740.0,105730.0,1.48768068]
[1748547966226,0.00075619,105740.0,105730.0,1.48768068]
[1748547966857,0.20801736,105760.0,105750.0,0.23203384]
[1748547967071,0.20811053,105760.0,105750.0,0.41915637]
[1748547967524,0.01900274,105760.0,105750.0,0.41915637]
[1748547967747,0.03791222,105760.0,105750.0,0.41915637]
[1748547968184,0.22701963,105760.0,105750.0,0.42215637]
[1748547968395,0.23647473,105760.0,105750.0,0.42215637]
[1748547969056,0.23647473,105760.0,105750.0,0.42415646]
[1748547969271,0.22702017,105760.0,105750.0,0.43361227]
[1748547969476,0.23647545,105760.0,105750.0,0.42415655]
[1748547969906,0.25892017,105760.0,105750.0,0.43361227]
[1748547970154,0.25892107,105760.0,105750.0,0.11450338]
[1748547970378,0.25892152,105760.0,105750.0,0.40524484]
[1748547970606,0.24001123,105760.0,105750.0,0.10251192]
[1748547970834,0.24001123,105760.0,105750.0,0.00754939]
[1748547971055,0.53517123,105760.0,105750.0,0.00754939]
[1748547971291,0.53517123,105760.0,105750.0,0.34754939]
[1748547974474,0.24001123,105760.0,105750.0,0.34754939]
[1748547974682,0.53517123,105760.0,105750.0,0.34754939]
[1748547978588,0.53517123,105760.0,105750.0,0.34767109]
[1748547978790,0.53513123,105760.0,105750.0,0.34767109]
[1748547981479,0.53513123,105760.0,105750.0,0.35060267]
[1748547982345,0.24001123,105760.0,105750.0,0.34583109]
[1748547982592,0.24001123,105760.0,105750.0,0.34876267]
[1748547983373,0.24001087,105760.0,105750.0,0.43981662]
[1748547983511,0.04144791,105760.0,105750.0,0.63839784]
[1748547983727,9.317e-05,105760.0,105750.0,1.07552737]
[1748547983987,9.317e-05,105760.0,105750.0,1.09082737]
[1748547984217,9.317e-05,105760.0,105750.0,1.15148021]
[1748547985060,9.317e-05,105760.0,105750.0,1.05611879]
[1748547985292,0.26012062,105760.0,105750.0,0.75032796]
[1748547985501,0.06155793,105760.0,105750.0,0.75978359]
[1748547985721,0.25066606,105760.0,105750.0,0.63937625]
[1748547985936,0.24121114,105760.0,105750.0,0.44372647]
[1748547986813,0.24121114,105760.0,105750.0,0.62894192]
[1748547987021,0.23175595,105760.0,105750.0,0.43981663]
[1748547987233,0.22230058,105760.0,105750.0,0.43981663]
[1748547987662,0.22230058,105760.0,105750.0,0.4398167]
[1748547987883,0.22230058,105760.0,105750.0,0.62894199]
[1748547988108,0.22230058,105760.0,105750.0,0.4398167]
[1748547988833,0.22230058,105760.0,105750.0,0.00583109]
[1748547989312,0.31335453,105760.0,105750.0,0.00583109]
[1748547989527,0.31335453,105760.0,105750.0,0.0032817]
[1748547989979,0.31335453,105760.0,105750.0,0.0021217]
[1748547990210,0.31435453,105760.0,105750.0,0.0021217]
[1748547990636,0.31435453,105760.0,105750.0,0.0001217]
[1748547991063,0.31635453,105760.0,105750.0,0.0011217]
[1748547994511,0.31635453,105760.0,105730.0,0.01864658]
[1748547994512,0.20805687,105740.0,105730.0,0.01864658]
[1748547994714,0.20805687,105740.0,105720.0,0.34292874]
[1748547994715,0.19861894,105730.0,105720.0,0.34]
[1748547994918,0.19861894,105730.0,105720.0,0.44997176]
[1748547994919,0.22981894,105730.0,105720.0,0.44997176]
[1748547996215,0.22981894,105730.0,105720.0,0.4594307]
[1748547996437,0.22981894,105730.0,105720.0,0.64860966]
[1748547996870,0.22981894,105730.0,105720.0,0.65791789]
[1748547997086,0.002,105730.0,105720.0,0.70829365]
[1748547997309,0.02091475,105730.0,105720.0,0.71122153]
[1748547997524,0.03983022,105730.0,105720.0,0.71513137]
[1748547997740,0.03963739,105730.0,105720.0,0.71513137]
[1748547997945,0.02072192,105730.0,105720.0,0.71513137]
[1748547998186,0.03017952,105730.0,105720.0,0.72576238]
[1748547998391,0.03017943,105730.0,105720.0,0.72576238]
[1748547998685,0.00180717,105730.0,105720.0,0.72967222]
[1748547998905,0.02072192,105730.0,105720.0,0.74607222]
[1748547999312,0.01126441,105730.0,105720.0,0.74314434]
[1748547999785,0.01126441,105730.0,105720.0,1.03818434]
[1748547999786,0.00180717,105730.0,105720.0,1.03818434]
[1748548000014,0.00180717,105730.0,105720.0,3.46969704]
[1748548000231,0.23386597,105760.0,105740.0,0.58715442]
[1748548000232,0.01891118,105750.0,105740.0,0.58715442]
[1748548000442,0.23640435,105750.0,105740.0,0.74573184]
[1748548000660,0.23640435,105750.0,105740.0,0.75811677]
[1748548000884,0.22694818,105750.0,105740.0,0.77702992]
[1748548001086,0.23622835,105750.0,105740.0,0.77702992]
[1748548001289,0.22677227,105750.0,105740.0,0.77702992]
[1748548001511,0.001,105750.0,105740.0,0.78045917]
[1748548001740,0.001,105750.0,105740.0,0.78143611]
[1748548002009,0.20811294,105760.0,105750.0,0.53858155]
[1748548002218,0.21756786,105760.0,105750.0,0.6392586]
[1748548002430,0.21756786,105760.0,105750.0,0.64218633]
[1748548003309,0.22702323,105760.0,105750.0,0.65164232]
[1748548003724,0.21756741,105760.0,105750.0,0.65164232]
[1748548003934,0.2364777,105760.0,105750.0,0.65164232]
[1748548004093,0.21756768,105760.0,105750.0,0.66209822]
[1748548004334,0.22702296,105760.0,105750.0,0.66209822]
[1748548004545,0.22702296,105760.0,105750.0,0.64318633]
[1748548004696,0.22702296,105760.0,105750.0,0.66718317]
[1748548004697,0.01054791,105760.0,105750.0,0.66718317]
[1748548004895,0.01054791,105760.0,105750.0,0.67663889]
[1748548004896,0.21856525,105760.0,105750.0,0.67663889]
[1748548005119,0.21756525,105760.0,105750.0,0.67663889]
[1748548005327,0.21756525,105760.0,105750.0,0.6870947]
[1748548005955,0.22702062,105760.0,105750.0,0.65872718]
[1748548006218,0.22702062,105760.0,105750.0,0.43614861]
[1748548006219,0.23991105,105760.0,105750.0,0.43614861]
[1748548006423,0.23991105,105760.0,105750.0,0.43322097]
[1748548006795,0.23991105,105760.0,105750.0,0.43332097]
[1748548009537,0.23045595,105760.0,105750.0,0.43332097]
[1748548011006,0.21485595,105760.0,105750.0,0.43332097]
[1748548011213,0.23005595,105760.0,105750.0,0.43332097]
[1748548012248,0.21485595,105760.0,105750.0,0.43332097]
[1748548013288,0.23005595,105760.0,105750.0,0.43332097]
[1748548014243,0.23005568,105760.0,105750.0,0.64135833]
[1748548014464,9.317e-05,105760.0,105750.0,0.66535481]
[1748548014746,0.22007368,105780.0,105770.0,0.21745187]
[1748548014747,0.031,105780.0,105770.0,0.21745187]
[1748548014932,0.01890385,105790.0,105780.0,0.20797836]
[1748548014933,0.04135197,105790.0,105780.0,0.20797836]
[1748548015145,0.04135197,105790.0,105780.0,0.30848526]
[1748548015146,0.05080403,105790.0,105780.0,0.30848526]
[1748548015356,0.05089724,105790.0,105780.0,0.30848526]
[1748548015576,0.03469724,105790.0,105780.0,0.30848526]
[1748548015786,0.22375102,105790.0,105780.0,0.30848535]
[1748548015997,0.22375102,105790.0,105780.0,0.3179383]
[1748548016219,0.22475102,105790.0,105780.0,0.3179383]
[1748548016439,0.23420335,105790.0,105780.0,0.30848535]
[1748548016649,0.22475102,105790.0,105780.0,0.29903231]
[1748548016871,0.23420326,105790.0,105780.0,0.3179383]
[1748548017098,0.01054509,105790.0,105780.0,0.3179383]
[1748548017542,0.01154509,105790.0,105780.0,0.3179383]
[1748548017753,0.00109321,105790.0,105780.0,0.3179383]
[1748548017960,0.01054509,105790.0,105780.0,0.35180191]
[1748548018166,0.01054509,105790.0,105780.0,0.35280191]
[1748548018623,0.00109321,105790.0,105780.0,0.35280191]
[1748548019293,0.00109321,105790.0,105780.0,0.69280191]
[1748548019506,0.00109321,105790.0,105780.0,0.71112944]
[1748548019715,0.00109321,105790.0,105780.0,0.72732944]
[1748548020582,0.00109321,105790.0,105780.0,0.72742944]
[1748548020786,0.00109321,105790.0,105780.0,0.72450191]
[1748548020994,0.00109321,105790.0,105780.0,0.72743681]
[1748548021252,0.54309211,105820.0,105810.0,0.20791976]
[1748548021447,0.55303407,105820.0,105810.0,0.20791976]
[1748548021696,0.55303407,105820.0,105800.0,0.29039142]
[1748548021697,0.24877003,105810.0,105800.0,0.29039142]
[1748548021919,0.23931958,105810.0,105800.0,0.18297395]
[1748548022156,0.23931958,105810.0,105800.0,0.09192]
[1748548022422,0.22986895,105810.0,105800.0,0.09192]
[1748548023324,0.23286895,105810.0,105800.0,0.09192]
[1748548023533,0.23286895,105810.0,105800.0,0.1015255]
[1748548023751,0.23286895,105810.0,105800.0,0.1017059]
[1748548024200,0.23586895,105810.0,105800.0,0.1027059]
[1748548025063,0.23586895,105810.0,105800.0,0.0107859]
[1748548025271,0.23586895,105810.0,105800.0,0.0011804]
[1748548025483,0.2403587,105790.0,105780.0,0.11134276]
[1748548025685,0.2402587,105790.0,105780.0,0.11134276]
[1748548026517,0.2402587,105790.0,105780.0,0.3098679]
[1748548026723,0.04185206,105790.0,105780.0,0.41982802]
[1748548026923,0.02535206,105790.0,105780.0,0.41982802]
[1748548027134,0.03480439,105790.0,105780.0,0.41982802]
[1748548027514,0.01573606,105790.0,105780.0,0.41982802]
[1748548027768,0.02577667,105800.0,105790.0,0.21741076]
[1748548027958,0.01874167,105800.0,105790.0,0.30846471]
[1748548028160,0.02819319,105800.0,105790.0,0.30846471]
[1748548028426,0.2172291,105800.0,105790.0,0.28956032]
[1748548028843,0.22668071,105800.0,105790.0,0.30846507]
[1748548029030,0.22668071,105800.0,105790.0,0.29901274]
[1748548029193,0.2265243,105800.0,105790.0,0.29901274]